Cogmind - Beta 16 @@@ ROGUE MODE // 2025.11.09 @ 21:46:58 Player: szymekc Result: Core destroyed Performance ------------- Evolutions (1) 500 Regions Visited (5) 1000 Robots Destroyed (73) 365 Value Destroyed (1568) 1568 Prototype IDs (32) 640 Alien Tech Used (0) 0 Bonus (497) 497 TOTAL SCORE: 4570 Bonus ------- High Alert Combat Kills 24 Follower Combat Kills 173 Aligned with FarCom 300 Cogmind --------- Core Integrity 0/400 Matter 12/300 Energy 243/280 System Corruption 5% Temperature Critical (728) Movement Treading (320) Ox2 Location -9/Exiles Parts ------- > --- POWER (1) -------- Cooled Ion Engine > --- PROPULSION (3) --- Light Treads Light Treads > --- UTILITY (3) ------ Huge Storage Unit Medium Armor Plating Medium Armor Plating > --- WEAPON (2) ------- Advanced Beam Cannon Advanced Beam Cannon > --- INVENTORY (25) --- Cooled Ion Engine Improved Flight Unit Improved Flight Unit Superbattery (1500) Experimental Sensor Array Seismic Detector ECM Suite YOLO Cannon Heavy Assault Rifle Improved Assault Rifle Rocket Launcher Rocket Launcher Mining Claw Peak State ------------ > --- POWER ------------ Cooled Ion Engine > --- PROPULSION ------- Light Treads Light Treads Light Treads > --- UTILITY ---------- Huge Storage Unit Medium Armor Plating Shield Generator > --- WEAPON ----------- Improved Assault Rifle Improved Assault Rifle > --- INVENTORY -------- Cooled Ion Engine Light Treads Light Treads Light Treads Improved Flight Unit Improved Flight Unit Superbattery High-capacity Matter Pod Experimental Sensor Array Seismic Detector ECM Suite Medium Armor Plating Medium Armor Plating Medium Armor Plating Advanced Beam Cannon Advanced Beam Cannon YOLO Cannon Heavy Assault Rifle Improved Assault Rifle Rocket Launcher Rocket Launcher Mining Claw [Rating: 24] Favorites ----------- Power Cooled Ion Engine Engine Cooled Ion Engine Propulsion Light Treads Treads Light Treads Flight Unit Improved Flight Unit Utility Medium Armor Plating Device Shield Generator Storage Huge Storage Unit Protection Medium Armor Plating Weapon Improved Assault Rifle Energy Gun Heavy EM Pulse Gun Energy Cannon Advanced Beam Cannon Ballistic Gun Improved Assault Rifle Launcher Rocket Launcher Slashing Weapon Mining Claw Build | -11 -10 -10 -9 -9 -9 ------- Run | Yrd Mat Min Mat Min Exi Slots Evolved 2 | . . . 2 . . Power . | . . . . . . Propulsion 1 | . . . 1 . . Utility 1 | . . . 1 . . Weapon . | . . . . . . Parts Attached 49 | 7 10 1 18 1 12 Power 4 | 1 1 . 2 . . Engine 4 | 1 1 . 2 . . Core . | . . . . . . Reactor . | . . . . . . Propulsion 13 | 2 . 1 6 . 4 Treads 12 | 2 . 1 5 . 4 Leg . | . . . . . . Wheel . | . . . . . . Hover . | . . . . . . Flight 1 | . . . 1 . . Utility 15 | 2 4 . 4 1 4 Device 6 | 2 2 . 1 1 . Storage 2 | . 1 . 1 . . Processor . | . . . . . . Hackware . | . . . . . . Protection 7 | . 1 . 2 . 4 Artifact . | . . . . . . Weapon 17 | 2 5 . 6 . 4 Energy Gun 8 | 1 5 . 2 . . Energy Cannon 2 | . . . 1 . 1 Ballistic Gun 5 | 1 . . 2 . 2 Ballistic Cannon . | . . . . . . Launcher 1 | . . . 1 . . Special Weapon . | . . . . . . Impact Weapon . | . . . . . . Slashing Weapon 1 | . . . . . 1 Piercing Weapon . | . . . . . . Special Melee Weapon . | . . . . . . Unidentified Prototypes 6 | . . . 6 . . Parts Lost 10 | . 1 . . . 9 Power . | . . . . . . Propulsion 4 | . . . . . 4 Utility 4 | . 1 . . . 3 Weapon 2 | . . . . . 2 Highest Loss Streak 6 | . 1 . . . 6 To Critical Strikes 7 | . . . . . 7 Average Backups 16 | 2 7 14 18 25 22 Power . | . . . . 1 1 Propulsion 4 | . 2 3 5 7 5 Utility 5 | . 2 4 6 9 8 Weapon 5 | . 2 6 6 8 7 Tool/Special . | . . . . . . Unused Backups 25 | . 6 1 6 . 12 Power 4 | . . . . . 4 Propulsion 3 | . 1 . 1 . 1 Utility 7 | . 3 . . . 4 Weapon 10 | . 1 1 5 . 3 Tool/Special 1 | . 1 . . . . Average Slot Usage (%) 97 | . 99 100 99 100 89 Engine 11 | . 14 14 11 11 11 Treads 31 | . 28 28 33 33 32 Device 9 | . 10 . 10 11 10 Storage 10 | . 8 14 11 11 11 Protection 11 | . 9 14 11 11 11 Energy Gun 8 | . 25 28 . . . Ballistic Gun 10 | . 2 . 20 21 3 Slashing Weapon 2 | . . . . . 9 Peak Build Rating 24 | 9 11 12 22 22 24 Average Rating 16 | 8 10 11 20 21 18 On Entrance 12 | . 9 11 12 22 21 Avg Prop Armor Cover (%) . | . . . . . . Naked Turns . | . . . . . . Heaviest Build 108 | 11 38 38 103 103 108 Greatest Support 60 | 40 40 40 60 60 60 Greatest Overweight (x) 1 | . . . 1 1 1 Average Overweight (x) . | . . . . 1 1 Largest Inventory Capacity 25 | 5 15 15 25 25 25 Average Capacity 18 | 5 10 15 21 25 25 Most Carried 25 | 3 13 15 25 25 25 Average Carried 16 | 2 7 14 18 25 23 Final Capacity 25 | 5 15 15 25 25 25 Final Carried 25 | 3 13 15 25 25 14 Class Distribution -------------------- 100% | Mutant Dominant Class ---------------- Mutant | -10/Materials Mutant | -10/Mines Mutant | -9/Materials Mutant | -9/Mines Mutant | -9/Exiles Resources | -11 -10 -10 -9 -9 -9 ----------- Run | Yrd Mat Min Mat Min Exi Matter Collected 1932 | 351 117 . 729 235 500 Remotely . | . . . . . . Salvage Created 2194 | 300 647 . 883 361 3 Parts 137 | 15 33 . 60 29 . Haulers Intercepted 6 | . 2 . 4 . . Recyclers Shooed 4 | . 2 1 1 . . Parts Field Recycled . | . . . . . . Retrieved Matter . | . . . . . . Parts Self-Destructed . | . . . . . . Prevented . | . . . . . . Parts Restored . | . . . . . . Kills | -11 -10 -10 -9 -9 -9 ------- Run | Yrd Mat Min Mat Min Exi Combat Hostiles Destroyed 47 | . 14 . 20 9 4 Guns 24 | . 12 . 7 5 . AOE 23 | . 2 . 13 4 4 Classes Destroyed 12 | 3 4 . 4 . 1 Worker 4 | 2 . . 1 1 . Builder 5 | . . . 5 . . Tunneler 10 | 9 . . . 1 . Hauler 6 | . 2 . 4 . . Recycler 4 | 1 . . . 3 . Watcher 1 | . 1 . . . . Swarmer 12 | . 3 . 2 7 . Grunt 23 | . 11 . 10 2 . Brawler 1 | . . . 1 . . Duelist 1 | . . . 1 . . Sentry 6 | . . . 6 . . Assembled 4 | . . . . . 4 Best Kill Streak 8 | 4 4 . 8 5 4 Combat Bots Only 7 | . 3 . 7 4 4 Max Kills in Single Turn 4 | 1 2 . 4 4 2 Gunslinging 1 | . . . 1 . . Exploded 4 | . 2 . 4 2 2 Melee . | . . . . . . Uniques/NPCs Destroyed . | . . . . . . Combat | -11 -10 -10 -9 -9 -9 -------- Run | Yrd Mat Min Mat Min Exi Hostile Shots Fired 268 | . 47 . 69 32 120 Missed 82 | . 16 . 28 15 23 Hits 186 | . 31 . 41 17 97 Melee 3 | . . . 2 . 1 Projectile 183 | . 31 . 39 17 96 Critical Strikes 57 | . . . 4 . 53 Damage Taken 2631 | . 424 . 488 103 1616 Core 452 | . 45 . 57 6 344 Absorbed by Shields 547 | . . . 188 43 316 Core Remaining (%) 91 | 100 . 82 . . . Volleys Fired 189 | 27 41 . 41 20 60 Largest 2 | 2 2 . 2 2 2 Hottest 136 | 70 90 . 90 46 136 Shots Fired 365 | 54 82 . 77 37 115 Gun 327 | 54 82 . 68 32 91 Cannon 20 | . . . . . 20 Launcher 18 | . . . 9 5 4 Special . | . . . . . . Kinetic 224 | 27 8 . 66 32 91 Thermal 55 | 27 8 . . . 20 Explosive 18 | . . . 9 5 4 Electromagnetic 68 | . 66 . 2 . . Robot Hit Streak 21 | 8 9 . 10 10 21 Robot Miss Streak 5 | 3 5 . 3 1 3 Penetration Max . | . . . . . . Secondary Targets 4 | . 2 . 1 1 . Max Gunslinging Chain 1 | . 1 . 1 1 . Shots Hit Robots 240 | 31 40 . 56 19 94 Core Hits 116 | 13 23 1 43 15 21 Critical Kills . | . . . . . . Critical Parts Destroyed . | . . . . . . Critical Strikes 6 | 3 2 . . . 1 Burn 4 | 3 1 . . . . Destroy 1 | . . . . . 1 Corrupt 1 | . 1 . . . . Melee Attacks . | . . . . . . Impact . | . . . . . . Slashing . | . . . . . . Piercing . | . . . . . . Sneak Attacks . | . . . . . . Combat Hostiles . | . . . . . . Follow-up Attacks . | . . . . . . Damage Inflicted 5498 | 414 727 55 1900 795 1607 Guns 3160 | 414 606 . 733 281 1126 Cannons 290 | . . . . . 290 Explosions 1913 | . 83 . 1125 514 191 Melee . | . . . . . . Ramming 135 | . 38 55 42 . . Kinetic 2384 | 186 75 . 716 281 1126 Thermal 962 | 228 145 . . 299 290 Explosive 1531 | . . . 1125 215 191 Electromagnetic 486 | . 469 . 17 . . Impact . | . . . . . . Slashing . | . . . . . . Piercing . | . . . . . . Highest Corruption 5 | . . . 5 5 5 Average Corruption 5 | . . . 5 5 5 Corruption Purged . | . . . . . . Corruption Blocked . | . . . . . . Effects 102 | . . . 36 27 39 Message Errors 22 | . . . 9 4 9 Matter Fused 25 | . . . 7 8 10 Heat Flow Errors 8 | . . . 2 2 4 Energy Discharges 16 | . . . 3 4 9 Parts Rejected 1 | . . . 1 . . Parts Fused 1 | . . . . 1 . Data Loss (minor) 14 | . . . 5 5 4 Data Loss (major) 2 | . . . 1 1 . Misfires 7 | . . . 5 2 . Alerts 4 | . . . 2 . 2 Weapon Failures 2 | . . . 1 . 1 Overload Shots . | . . . . . . Overflow Damage 44 | . . . 13 31 . Projectiles . | . . . . . . Explosions 44 | . . . 13 31 . Melee . | . . . . . . Knockbacks . | . . . . . . Impact . | . . . . . . Kinetic . | . . . . . . Secondary . | . . . . . . Self-Inflicted Damage 194 | . 39 . 102 . 53 Shots 7 | . 1 . 4 . 2 Rammed 21 | . 7 8 5 1 . Targets Rammed 22 | . 7 8 6 1 . Kicked . | . . . . . . Crushed 1 | . . . 1 . . Highest Temperature 728 | 45 207 . 225 277 728 Average Temperature 80 | 17 58 . 61 138 202 Received Heat Transfer 395 | . 165 . 218 12 . Effects 12 | . . . . . 12 Shutdowns 1 | . . . . . 1 Energy Bleed 1 | . . . . . 1 Matter Decay 1 | . . . . . 1 Damage (major) 6 | . . . . . 6 Damage (core) 3 | . . . . . 3 Siege Activations . | . . . . . . Martial Activations . | . . . . . . Shielding Activations . | . . . . . . Robots Disrupted . | . . . . . . Combat Hostiles . | . . . . . . Robots Corrupted . | . . . . . . Combat Hostiles . | . . . . . . Parts Fried 1 | . 1 . . . . Impact Corruptions . | . . . . . . Robots Melted . | . . . . . . Combat Hostiles . | . . . . . . Parts Melted 4 | 4 . . . . . Heat Transferred 1873 | 888 409 . . 450 126 Parts Sabotaged . | . . . . . . Parts Stolen . | . . . . . . Parts Stripped . | . . . . . . Power Chain Reactions 2 | . 2 . . . . Alert | -11 -10 -10 -9 -9 -9 ------- Run | Yrd Mat Min Mat Min Exi Maximum Alert Level 2 | . . . 2 1 . Low Security (%) 71 | 100 100 100 43 34 . Level 1 22 | . . . 38 65 . Level 2 5 | . . . 17 . . Level 3 . | . . . . . . Level 4 . | . . . . . . Level 5 . | . . . . . . High Security . | . . . . . . Max Security . | . . . . . . Peak Influence 471 | 15 117 36 471 334 . Initial 168 | . . 25 . 168 . Average 123 | . 47 1 235 229 . Influence Increases 1901 | 60 467 11 943 420 . Destroy 0b10 Robot/C 1000 | . 280 . 540 180 . Destroy 0b10 Robot/NC 155 | 60 15 . 55 25 . Destroy Leader 256 | . 66 . 160 30 . Allied During Kill 42 | . . . 42 . . Successful Hack 82 | . 21 11 50 . . Select Force Hacks 60 | . 30 . 30 . . Disable Machine 165 | . 30 . . 135 . Destroy Structure 126 | . 10 . 66 50 . Lose Combat Pursuer 15 | . 15 . . . . Influence Decreases 1901 | 60 402 76 511 668 184 Entered New Map 488 | . . 40 . 264 184 Time Decay 1343 | 60 392 36 451 404 . Lost Part 10 | . 10 . . . . Lost Ally 60 | . . . 60 . . Squads Dispatched 7 | . 2 . 4 1 . Investigation 3 | . 1 . 2 . . Extermination . | . . . . . . Reinforcement 3 | . 1 . 1 1 . Assault 1 | . . . 1 . . Garrison . | . . . . . . Intercept . | . . . . . . Searches Triggered . | . . . . . . Construction Impeded 1 | . . . . 1 . Haulers Reinforced . | . . . . . . Active Scanning Responses . | . . . . . . Cargo Convoy Interrupts . | . . . . . . Stealth | -11 -10 -10 -9 -9 -9 --------- Run | Yrd Mat Min Mat Min Exi Distress Signals 4 | . 3 . 1 . . Communications Jammed . | . . . . . . Distress Signals . | . . . . . . Times Spotted 78 | . 24 . 37 8 9 Peak Tracking Total 11 | . 4 . 7 4 11 Tactical Retreats 2 | . 1 . . . 1 Traps | -11 -10 -10 -9 -9 -9 ------- Run | Yrd Mat Min Mat Min Exi Traps Triggered 2 | . 2 . . . . Indirectly . | . . . . . . Trap Hack Attempts . | . . . . . . Triggered . | . . . . . . Disarmed . | . . . . . . Reprogrammed . | . . . . . . Reused . | . . . . . . Traps Extracted . | . . . . . . Installed . | . . . . . . Triggered . | . . . . . . Machines | -11 -10 -10 -9 -9 -9 ---------- Run | Yrd Mat Min Mat Min Exi Machines Disabled 16 | . 3 . . 9 4 Max in Single Turn 9 | . 1 . . 9 1 Machines Repaired . | . . . . . . Machines Dismantled . | . . . . . . Machines Sabotaged . | . . . . . . Overloaded Fab Kills . | . . . . . . Hacking | -11 -10 -10 -9 -9 -9 --------- Run | Yrd Mat Min Mat Min Exi Machines Accessed 18 | . 7 1 8 1 1 Terminals 14 | . 6 1 6 1 . Fabricators . | . . . . . . Repair Stations . | . . . . . . Recycling Units 2 | . 1 . 1 . . Scanalyzers 1 | . . . 1 . . Garrison Access . | . . . . . . Total Hacks 46 | . 17 3 23 2 1 Successful 24 | . 10 2 11 . 1 Failed 22 | . 7 1 12 2 . Catastrophic 3 | . 1 . 1 1 . Database Lockouts . | . . . . . . Manual 30 | . 13 2 12 2 1 Terminals 37 | . 16 3 16 2 . Fabricators . | . . . . . . Repair Stations . | . . . . . . Recycling Units 3 | . 1 . 2 . . Scanalyzers 5 | . . . 5 . . Garrison Access . | . . . . . . Terminal Hacks 8 | . 3 2 2 . 1 Robot Analysis 1 | . . 1 . . . Prototype ID Bank 1 | . . . 1 . . Terminal Index 1 | . 1 . . . . Locate Traps 1 | . 1 . . . . Registered Components 1 | . . . 1 . . Zone Layout 2 | . 1 1 . . . Proto ID Catalog 1 | . . . . . 1 Fabricator Hacks . | . . . . . . Repair Station Hacks . | . . . . . . Recycling Unit Hacks 1 | . . . 1 . . Retrieve Components 1 | . . . 1 . . Scanalyzer 2 | . . . 2 . . Insert Component 1 | . . . 1 . . Analyze 1 | . . . 1 . . Garrison Access Hacks . | . . . . . . Unauthorized Hacks 13 | . 7 . 6 . . Terminals 11 | . 6 . 5 . . Botnet 1 | . 1 . . . . Skim 10 | . 5 . 5 . . Fabricators . | . . . . . . Repair Stations . | . . . . . . Recycling Units 2 | . 1 . 1 . . Tunnel 2 | . 1 . 1 . . Scanalyzers . | . . . . . . Garrison Access . | . . . . . . Data Cores Recovered . | . . . . . . Used . | . . . . . . Hacking Detections 14 | . 5 1 7 1 . Full Trace Events 1 | . . . 1 . . Feedback Events . | . . . . . . Feedback Blocked . | . . . . . . Robot Schematics Acquired . | . . . . . . Robots Built . | . . . . . . Authchips . | . . . . . . Time . | . . . . . . Total Robot Build Rating . | . . . . . . Part Schematics Acquired . | . . . . . . Parts Built . | . . . . . . Authchips . | . . . . . . Time . | . . . . . . Total Part Build Rating . | . . . . . . Part Studies Acquired . | . . . . . . Parts Repaired . | . . . . . . Time . | . . . . . . Parts Recycled . | . . . . . . Recycled Matter . | . . . . . . Retrieved Matter . | . . . . . . Retrieved Components 9 | . . . 9 . . Parts Scanalyzed 1 | . . . 1 . . Part Schematics Acquired . | . . . . . . Parts Damaged . | . . . . . . Bothacking | -11 -10 -10 -9 -9 -9 ------------ Run | Yrd Mat Min Mat Min Exi Used RIF Installer . | . . . . . . Robots Hacked . | . . . . . . Non-combat . | . . . . . . Combat . | . . . . . . Robot Hacks Applied . | . . . . . . Relay Couplers Released . | . . . . . . Fabnet Peak Effective % . | . . . . . . Robots Rewired . | . . . . . . Allies Hacked . | . . . . . . Hacks Repelled . | . . . . . . Allies | -11 -10 -10 -9 -9 -9 -------- Run | Yrd Mat Min Mat Min Exi Total Allies 3 | . . 3 . . . Largest Group 3 | . . 3 3 . . Highest-Rated Group 40 | . . 40 40 . . Highest-Rated Ally 16 | . . 16 16 . . Total Orders . | . . . . . . Ally Attacks 30 | . . . 30 . . Total Damage 292 | . . . 292 . . Kills 8 | . . . 8 . . Allies Corrupted . | . . . . . . Allies Melted . | . . . . . . Intel | -11 -10 -10 -9 -9 -9 ------- Run | Yrd Mat Min Mat Min Exi Active Infowar (turns) 2365 | 940 380 . 113 100 832 Terrain 1133 | 937 196 . . . . Seismic 2354 | 940 369 . 113 100 832 Robot Analysis Total 1 | . . 1 . . . Derelict Logs Recovered 3 | . . 2 . 1 . Drone Launches . | . . . . . . Drone Recoveries . | . . . . . . Exploration | -11 -10 -10 -9 -9 -9 ------------- Run | Yrd Mat Min Mat Min Exi Turns Passed 7960 | 1071 1208 904 2032 963 1782 Spaces Moved 3249 | 142 629 552 914 376 636 Core 4 | 4 . . . . . Treads 3245 | 138 629 552 914 376 636 Legs . | . . . . . . Wheels . | . . . . . . Hover . | . . . . . . Flight . | . . . . . . Fastest Speed 50 | 50 160 160 160 240 240 Average Speed 196 | 156 160 160 200 240 240 Slowest Speed 240 | 160 160 160 240 240 240 Overloaded Moves . | . . . . . . Propulsion Burnouts . | . . . . . . Robots Hopped . | . . . . . . Potential Cave-ins . | . . . . . . Cave-ins Triggered . | . . . . . . Exploration Rate (%) 66 | 6 97 98 67 61 69 Regions Visited 5 Branch Regions 3 Pre-discovered Areas 6 | . 1 2 3 . . Known Exits Taken 2 | . . 1 1 . . Unknown Exits Taken 3 | 1 1 . . 1 . Scrap Searched 1 | . . 1 . . . Spaces Dug 48 | . . . 9 32 7 Terrain Destroyed 180 | . 9 . 73 75 23 Melee . | . . . . . . Projectile . | . . . . . . AOE 180 | . 9 . 73 75 23 Terrain Rammed . | . . . . . . Walls Destroyed . | . . . . . . Machines Disabled . | . . . . . . Actions | -11 -10 -10 -9 -9 -9 --------- Run | Yrd Mat Min Mat Min Exi Total 4467 | 933 747 569 1038 400 780 Wait 832 | 755 28 3 13 1 32 Move 3244 | 141 628 551 913 375 636 Hop . | . . . . . . Pick Up 60 | 3 21 4 21 . 11 Fast Attach 9 | 7 1 . 1 . . Attach 13 | . 1 . 2 . 10 Detach 2 | . . . . . 2 Swap 53 | . 9 1 26 3 14 Drop 43 | . 11 2 15 . 15 Fire 189 | 27 41 . 41 20 60 Melee . | . . . . . . Ram . | . . . . . . Kick . | . . . . . . Crush 22 | . 7 8 6 1 . Escape Stasis . | . . . . . . Rewire . | . . . . . . Trap . | . . . . . . Miscellaneous . | . . . . . . Route ------- -11/Scrapyard -10/Materials (discovered 6 exits: *Mat x3 / *Min x2 / [*Sub]) -10/Mines (discovered 2 exits: *Mat x2) -9/Materials (discovered 5 exits: *Mat x3 / *Min x2) -9/Mines (discovered 3 exits: *Mat x2 / *Exi) -9/Exiles History --------- Turn | Location | Event 3 | -11/Scrapyard | Discovered new exit (range 15) 1072 | -11/Scrapyard | Entered Materials 1073 | -10/Materials | Build established: Mutant 1174 | -10/Materials | Discovered new exit (range 9) 1325 | -10/Materials | Discovered new exit (range 11) 1558 | -10/Materials | Discovered new exit (range 7) 1668 | -10/Materials | Discovered new exit (range 16) 1817 | -10/Materials | Discovered new exit (range 6) 2097 | -10/Materials | Discovered new exit (range 11) 2174 | -10/Materials | Learned 2 Mines zone layouts 2188 | -10/Materials | Learned location of 1 exit from Storage 2190 | -10/Materials | Identified exit to Materials 2191 | -10/Materials | Learned Storage security intel 2192 | -10/Materials | Learned Storage emergency access door positions 2228 | -10/Materials | Learned location of 2 exits from Subcaves 2260 | -10/Materials | Learned 4 Recycling zone layouts 2280 | -10/Materials | Entered Mines 2296 | -10/Mines | Learned location of Zion (-6) 2352 | -10/Mines | Discovered exit to Materials (range 12) 2414 | -10/Mines | Learned location of Storage (-7) 2626 | -10/Mines | Found a damaged Exp. Sensor Array with a note attached 2632 | -10/Mines | Found Prototype Device 2745 | -10/Mines | Received a Rocket Launcher from a helpful Derelict 2849 | -10/Mines | Assisted by bots powering up and referring to "LRC-V3" 3184 | -10/Mines | Entered Materials 3184 | -9/Materials | Accompanied by 3 allies 3184 | -9/Materials | Evolved 2 slots: Propulsion x1, Utility x1 3601 | -9/Materials | Discovered new exit (range 5) 3863 | -9/Materials | Discovered new exit (range 6) 4163 | -9/Materials | Destroyed 7 combat bots 4512 | -9/Materials | Learned 2 Storage zone layouts 4669 | -9/Materials | Identified exit to Mines 4702 | -9/Materials | Learned 4 Recycling zone layouts 4743 | -9/Materials | Learned Storage emergency access door positions 4794 | -9/Materials | Identified exit to Materials 4844 | -9/Materials | Identified Exp. Sensor Array 4855 | -9/Materials | Learned Storage stockpile data 5184 | -9/Materials | First assault squad dispatched 5216 | -9/Materials | Entered Mines 5238 | -9/Mines | Discovered exit to Materials (range 7) 5336 | -9/Mines | Found a hidden stash of uninstalled traps 5630 | -9/Mines | Deemed a non-threat by the Exiles lab entrance 6016 | -9/Mines | Assembled infested the area 6170 | -9/Mines | Discovered new exit (range 5) 6179 | -9/Mines | Entered Exiles 6247 | -9/Exiles | Met 8R-AWN 6283 | -9/Exiles | Met EX-HEX 6345 | -9/Exiles | Met EX-BIN 6376 | -9/Exiles | Met EX-DEC 6696 | -9/Exiles | Aligned with FarCom system 6698 | -9/Exiles | Given EX-Vault access code 6753 | -9/Exiles | Opened EX-Vault 6774 | -9/Exiles | Found Superbattery 6790 | -9/Exiles | Found YOLO Cannon 6846 | -9/Exiles | Warned to stay clear of 0b10 Research branches 7686 | -9/Exiles | Attacked by the Exiles 7860 | -9/Exiles | Core integrity fell below 50% 7936 | -9/Exiles | Lost 6 parts (2n2u2w) 7957 | -9/Exiles | Core integrity fell below 20% 7962 | -9/Exiles | Core destroyed Last Messages --------------- 07951_ HV Slug penetrates Earth. 07951_ Penetrated by HV Slug. 07951_ HV Slug penetrates Earth. 07955_ Overheating: Matter decay (-1). 07955_ System corrupted: Component data lost. 07956_ Overheating: Core damaged (-48). 07957_ Earth collapses. 07957_ Overheating: Core damaged (-52). 07957_ Penetrated by HV Slug. 07959_ Overheating: Lgt. Treads damaged (-58). 07959_ Overheating: Med. Armor Plating damaged (-8). 07959_ Overheating: Huge Storage Unit damaged (-376). 07959_ Overheating: Med. Armor Plating damaged (-43). 07960_ Overheating: Energy bleed (-39). 07961_ Overheating: Cld. Ion Engine damaged (-12). 07961_ Overheating: Med. Armor Plating damaged (-1). 07961_ HV Slug penetrates Machine. 07961_ Penetrated by HV Slug. 07962_ Power failure, Cld. Ion Engine shutdown. 07962_ Overheating: Core damaged (-60). Map ----- +----------------------------------------------------+ | ?????????????????????????????????????????????????? | | ?????????????????????????????????????????????????? | | ?????????????????????????????????????????????????? | | ?????????????????????????????????????????????????? | | ?????????????????????????????????????????????????? | | ?????????????????????????????????????????????????? | | ?????????????????????????????????????????????????? | | ?????????????????????????????????????????????????? | | ?????????????????????????????????????????????????? | | ?????????????????????????????????????????????????? | | ?????????????????????????????????????????????????? | | ?????????????????????????????????????????????????? | | ??????????????????????????????????#######????????? | | ???????????????????? ######???????#!!! "#????????? | | ??????????????????? #""#??????# "#????????? | | ??????????????????? ??????# "#????????? | | ??????????????????" #????## ""#????????? | | ??????????????????? #####" ""#????????? | | ???????????????????? ## ""?????????? | | ????????????????????? #" #??????????? | | ???????????????????????# ##?????????? | | ??????????????????????????# ####??????? | | ???????????????????????????## #??????? | | ????????????????????########" # ##????? | | ?????????????????#### !! " #????? | | ?????????? ;! @ g ###" # # | | ?????????????????####! ! #?# | | ???????????????????#;! !;#?## | | ???????????????????## !"" "" ;;; #?#"# % | | ????????????????????########;# ###?#### | | ???????????????????????????# # #??????##" | | ??????????????????????????? ## #????????### | | ???????????????????????????#?# #??????????#" | | ?????????????????????????????# #???????????## | | ?????????????????????????????# #????????????##" | | ?????????????????????????????# #?????????????#""" | | ?????????????????????????????? ?????????????##" | | ?????????????????????????????? ?????????????#"" | | ?????????????????????????????? ?????????????#""" | | ?????????????????????????????? ????????????#""" | | ?????????????????????????????? ????????????#""" | | ?????????????????????????????? ????????????#"" | | ?????????????????????????????? ????????????#""" | | ???????????????????????????????????????????#"" | | ???????????????????????????????????????????##"" | | ????????????????????????????????????????????#"""" | | ????????????????????????????????????????????## | | ?????????????????????????????????????????????#" | | ?????????????????????????????????????????????#"""" | | ?????????????????????????????????????????????#"" | +----------------------------------------------------+ Best States ------------- Heat Dissipation 28 Coolant Potential 50 Energy Generation 14 Energy Capacity 280 Matter Stores 300 Matter Capacity 300 Sight Range 16 Terrain Scan Range 16 Terrain Scan Density 10 Armor Coverage 450 Evasion (%) 40 Recoil Reduction 3 Item Schematics ----------------- None Robot Schematics ------------------ None Fabricated ------------ Nothing Repaired ---------- Nothing Studied --------- None Alien Tech Used ----------------- None Achievements -------------- None Challenges ------------ None Game ------ Seed EnhancedSpectralObliterator Manual? 0 Play Time 00:31:54 Cumulative 1004.3 hours Start 2025.11.09 @ 20:06:55 End 2025.11.09 @ 21:46:58 Sessions 1 Manual Loads 0 Difficulty Rogue Special Mode None Game No. 313 Rogue 311 Adventurer 2 Explorer 0 Win Type - Total 72 Types 20/17/16/1/1/1/12/1/1/2 Lore% 97 Gallery% 94 Achievement% 82 Wizard Run 0 Options --------- Layout 0 ASCII 0 Keyboard 1 Movement Numpad Keybinds 0 Fullscreen 1 Font 24/Smallcaps Map View 76x50 Zoom Use 1% Tactical HUD 1 Map Filters NONE Filters NONE Steam 1 RUN: f6406fe5-a1dc-415b-9435-adc398847f91